[Event "IMSA Blitz Men 2019"]
[Site "Hengshui"]
[Date "2019.05.18"]
[Round "8.1"]
[White "Cheparinov, Ivan"]
[Black "Ponomariov, Ruslan"]
[Result "1-0"]
[ECO "E07"]
[WhiteElo "2667"]
[BlackElo "2675"]
[Annotator "RC"]
[PlyCount "91"]
[EventDate "2019.05.17"]
[EventType "blitz"]
[EventCountry "CHN"]
[SourceTitle "playchess.com"]
[Source "ChessBase"]
[SourceQuality "1"]
[TimeControl "180+2"]

1. d4 {[%emt 0:00:00]} Nf6 {[%emt 0:00:00]} 2. c4 {[%emt 0:00:00]} e6 {[%emt 0:00:00]} 3. Nf3 {[%emt 0:00:00]} d5 {[%emt 0:00:02]} 4. Nc3 {[%emt 0:00:01]} Be7 {[%emt 0:00:02]} 5. g3 {[%emt 0:00:01]} O-O {[%emt 0:00:05]} 6. Bg2 {[%emt 0:00:00]} Nbd7 {[%emt 0:00:05]} 7. Qd3 {[%emt 0:00:11]} c6 {[%emt 0:00:16]} 8. O-O {[%emt 0:00:09]} b6 {[%emt 0:00:00]} 9. b3 {[%emt 0:00:04]} a5 {[%emt 0:00:05]} 10. Bb2 Ba6 11. Rfd1 {[%emt 0:00:23]} Rc8 {[%emt 0:00:10]} 12. Rac1 {[%emt 0:00:04]} Qc7 {[%emt 0:00:21]} 13. e4 {[%emt 0:00:05]} Rfd8 {[%emt 0:00:04]} 14. exd5 {[%emt 0:00:13]} cxd5 {[%emt 0:00:04]} 15. Nb5 {[%emt 0:00:03]} Qb8 {[%emt 0:00:07]} 16. a4 {[%emt 0:00:12]} Bb7 {[%emt 0:00:04]} 17. Qe2 {[%emt 0:00:07]} Ne4 {[%emt 0:00:06]} 18. Rc2 {[%emt 0:00:07]} Nf8 {[%emt 0:00:33]} 19. Bc1 {[%emt 0:00:06]} Ng6 20. h4 {[%emt 0:00:03]} Nf6 {[%emt 0:00:08]} 21. Bb2 {[%emt 0:00:16]} Bf8 {[%emt 0:00:07]} 22. Re1 {[%emt 0:00:07]} Bc6 {[%emt 0:00:09]} 23. Rec1 {[%emt 0:00:02]} Qb7 {[%emt 0:00:12]} 24. Ne1 {[%emt 0:00:26]} dxc4 {[%emt 0:00:07]} 25. bxc4 {[%emt 0:00:03]} Bxg2 {[%emt 0:00:01]} 26. Nxg2 {[%emt 0:00:01]} h6 {[%emt 0:00:04]} 27. Ne1 {[%emt 0:00:09]} Ne8 {[%emt 0:00:17]} 28. Qf3 {[%emt 0:00:02]} Qd7 {[%emt 0:00:03]} 29. Nd3 {[%emt 0:00:07]} Nd6 {[%emt 0:00:03]} 30. h5 {[%emt 0:00:01]} Ne7 {[%emt 0:00:03]} 31. Ne5 {[%emt 0:00:02]} Qe8 {[%emt 0:00:00]} 32. g4 {[%emt 0:00:22]} Nc6 {[%emt 0:00:03]} 33. Nxc6 {[%emt 0:00:13]} Rxc6 {[%emt 0:00:03]} 34. c5 {[%emt 0:00:05]} bxc5 {[%emt 0:00:14]} 35. Nxd6 {[%emt 0:00:08]} Rcxd6 {[%emt 0:00:04]} 36. dxc5 {[%emt 0:00:01]} Rd3 {[%emt 0:00:01]} 37. Qe4 {[%emt 0:00:01]} Qe7 {[%emt 0:00:17]} 38. c6 {[%emt 0:00:03]} Qc7 {[%emt 0:00:02]} 39. Be5 {[%emt 0:00:02]} Qc8 {[%emt 0:00:08]} 40. c7 {[%emt 0:00:01]} R8d5 {[%emt 0:00:02]} 41. Rb2 {[%emt 0:00:03]} Bb4 {[%emt 0:00:03]} 42. Bg3 {[%emt 0:00:07]} R3d4 {[%emt 0:00:03]} 43. Qe2 {[%emt 0:00:02]} Rd2 {[%emt 0:00:04]} 44. Rxd2 {[%emt 0:00:01]} Rxd2 {[%emt 0:00:01]} 45. Qb5 {[%emt 0:00:02]} e5 {[%emt 0:00:04]} 46. Qb8 {[%emt 0:00:01]} 1-0

[Event "IMSA Blitz Men 2019"]
[Site "Hengshui"]
[Date "2019.05.18"]
[Round "8.1"]
[White "Mamedov, Rauf"]
[Black "Fedoseev, Vladimir"]
[Result "1-0"]
[ECO "B51"]
[WhiteElo "2650"]
[BlackElo "2683"]
[Annotator "RC"]
[PlyCount "92"]
[EventDate "2019.05.17"]
[EventType "blitz"]
[EventCountry "CHN"]
[SourceTitle "playchess.com"]
[Source "ChessBase"]
[SourceQuality "1"]
[TimeControl "180+2"]

1. e4 {[%emt 0:00:00]} c5 {[%emt 0:00:00]} 2. Nf3 {[%emt 0:00:00]} d6 {[%emt 0:00:00]} 3. Bb5+ {[%emt 0:00:00]} Nd7 {[%emt 0:00:01]} 4. c3 {[%emt 0:00:03]} Ngf6 {[%emt 0:00:04]} 5. Qe2 {[%emt 0:00:01]} a6 {[%emt 0:00:01]} 6. Ba4 {[%emt 0:00:01]} b5 {[%emt 0:00:01]} 7. Bc2 {[%emt 0:00:01]} Bb7 {[%emt 0:00:02]} 8. d4 {[%emt 0:00:02]} e5 {[%emt 0:00:00]} 9. O-O {[%emt 0:00:05]} Be7 {[%emt 0:00:01]} 10. Rd1 {[%emt 0:00:06]} Qb8 {[%emt 0:00:24]} 11. a4 {[%emt 0:00:14]} O-O {[%emt 0:00:10]} 12. d5 {[%emt 0:00:02]} c4 {[%emt 0:00:07]} 13. Nbd2 {[%emt 0:00:54]} Nc5 {[%emt 0:00:01]} 14. Nf1 {[%emt 0:00:01]} Bc8 {[%emt 0:00:22]} 15. Ng3 {[%emt 0:00:07]} Bd7 {[%emt 0:00:01]} 16. axb5 {[%emt 0:00:12]} axb5 {[%emt 0:00:05]} 17. Be3 {[%emt 0:00:01]} Rc8 {[%emt 0:00:12]} 18. h3 {[%emt 0:00:01]} Qc7 {[%emt 0:00:18]} 19. Qf1 {[%emt 0:00:08]} Nb3 {[%emt 0:00:25]} 20. Bxb3 {[%emt 0:00:08]} cxb3 {[%emt 0:00:01]} 21. Nd2 {[%emt 0:00:01]} Ra2 {[%emt 0:00:02]} 22. Rab1 {[%emt 0:00:12]} b4 {[%emt 0:00:04]} 23. Rdc1 {[%emt 0:00:08]} bxc3 {[%emt 0:00:35]} 24. Rxc3 {[%emt 0:00:02]} Qd8 {[%emt 0:00:01]} 25. Rxb3 {[%emt 0:00:07]} h5 {[%emt 0:00:04]} 26. Ne2 {[%emt 0:00:18]} Ba4 {[%emt 0:00:15]} 27. Rb7 {[%emt 0:00:10]} Bd7 {[%emt 0:00:14]} 28. Nc3 {[%emt 0:00:02]} Raa8 {[%emt 0:00:03]} 29. Nc4 {[%emt 0:00:09]} Rab8 {[%emt 0:00:01]} 30. Rxb8 {[%emt 0:00:08]} Rxb8 {[%emt 0:00:00]} 31. b4 {[%emt 0:00:13]} Qc7 {[%emt 0:00:01]} 32. b5 {[%emt 0:00:03]} Ra8 {[%emt 0:00:21]} 33. b6 {[%emt 0:00:02]} Qb7 {[%emt 0:00:01]} 34. Ra1 {[%emt 0:00:04]} Be8 {[%emt 0:00:04]} 35. Qb1 {[%emt 0:00:05]} Nd7 {[%emt 0:00:03]} 36. Rxa8 {[%emt 0:00:01]} Qxa8 {[%emt 0:00:01]} 37. b7 {[%emt 0:00:01]} Qb8 {[%emt 0:00:02]} 38. Na5 {[%emt 0:00:01]} Qc7 {[%emt 0:00:03]} 39. Nc6 {[%emt 0:00:01]} Bf8 {[%emt 0:00:02]} 40. b8=Q {[%emt 0:00:07]} Nxb8 {[%emt 0:00:01]} 41. Qxb8 {[%emt 0:00:01]} Qd7 {[%emt 0:00:01]} 42. Nb5 {[%emt 0:00:03]} f5 {[%emt 0:00:02]} 43. f3 {[%emt 0:00:06]} fxe4 {[%emt 0:00:01]} 44. fxe4 {[%emt 0:00:01]} Bg6 {[%emt 0:00:03]} 45. Nc3 {[%emt 0:00:03]} Qf7 {[%emt 0:00:04]} 46. Nd8 {[%emt 0:00:04]} Qf6 {[%emt 0:00:03]} 1-0

[Event "IMSA Blitz Men 2019"]
[Site "Hengshui"]
[Date "2019.05.18"]
[Round "8.2"]
[White "Rapport, Richard"]
[Black "Gelfand, Boris"]
[Result "0-1"]
[ECO "A01"]
[WhiteElo "2736"]
[BlackElo "2676"]
[Annotator "RC"]
[PlyCount "188"]
[EventDate "2019.05.17"]
[EventType "blitz"]
[EventCountry "CHN"]
[SourceTitle "playchess.com"]
[Source "ChessBase"]
[SourceQuality "1"]
[TimeControl "180+2"]

1. b3 {[%emt 0:00:00]} e5 {[%emt 0:00:00]} 2. Bb2 {[%emt 0:00:00]} Nc6 {[%emt 0:00:00]} 3. c4 {[%emt 0:00:01]} Nf6 {[%emt 0:00:02]} 4. Nf3 {[%emt 0:00:01]} e4 {[%emt 0:00:01]} 5. Nd4 {[%emt 0:00:01]} Bc5 {[%emt 0:00:04]} 6. Nf5 {[%emt 0:00:01]} O-O {[%emt 0:00:03]} 7. e3 {[%emt 0:00:00]} d5 {[%emt 0:00:05]} 8. cxd5 {[%emt 0:00:01]} Nb4 {[%emt 0:00:01]} 9. Ng3 {[%emt 0:00:03]} Nfxd5 {[%emt 0:00:02]} 10. Qc1 {[%emt 0:00:13]} Be7 {[%emt 0:00:12]} 11. Nc3 {[%emt 0:00:06]} Nd3+ {[%emt 0:00:19]} 12. Bxd3 {[%emt 0:00:01]} exd3 {[%emt 0:00:01]} 13. Nxd5 {[%emt 0:00:06]} Qxd5 {[%emt 0:00:00]} 14. Qxc7 {[%emt 0:00:04]} Bd6 {[%emt 0:00:08]} 15. Qc3 {[%emt 0:00:03]} f6 {[%emt 0:00:03]} 16. e4 {[%emt 0:00:15]} Qb5 {[%emt 0:00:19]} 17. a4 {[%emt 0:00:04]} Qa6 {[%emt 0:00:05]} 18. b4 {[%emt 0:00:02]} Be5 {[%emt 0:00:21]} 19. Qa3 {[%emt 0:00:05]} Bxb2 {[%emt 0:00:15]} 20. Qxb2 {[%emt 0:00:01]} Be6 {[%emt 0:00:00]} 21. O-O {[%emt 0:00:06]} Rac8 {[%emt 0:00:06]} 22. Rfc1 {[%emt 0:00:22]} Rxc1+ {[%emt 0:00:08]} 23. Rxc1 {[%emt 0:00:01]} Qxa4 {[%emt 0:00:01]} 24. Qd4 {[%emt 0:00:04]} Qb5 {[%emt 0:00:20]} 25. Rc5 {[%emt 0:00:10]} Qd7 {[%emt 0:00:02]} 26. Qxd7 {[%emt 0:00:07]} Bxd7 {[%emt 0:00:01]} 27. Rd5 {[%emt 0:00:00]} Be6 {[%emt 0:00:14]} 28. Rxd3 {[%emt 0:00:01]} Rc8 {[%emt 0:00:00]} 29. f4 {[%emt 0:00:12]} g6 {[%emt 0:00:26]} 30. f5 {[%emt 0:00:17]} Bf7 {[%emt 0:00:08]} 31. Rd7 {[%emt 0:00:03]} b5 {[%emt 0:00:15]} 32. Rxa7 {[%emt 0:00:14]} Rc4 {[%emt 0:00:01]} 33. Rb7 {[%emt 0:00:08]} Rxb4 34. Kf2 {[%emt 0:00:03]} Bc4 {[%emt 0:00:06]} 35. h4 {[%emt 0:00:24]} Rb2 {[%emt 0:00:06]} 36. Rd7 {[%emt 0:00:21]} b4 {[%emt 0:00:01]} 37. fxg6 hxg6 38. h5 gxh5 {[%emt 0:00:06]} 39. Nxh5 {[%emt 0:00:03]} b3 {[%emt 0:00:03]} 40. Nxf6+ {[%emt 0:00:01]} Kf8 {[%emt 0:00:00]} 41. g4 {[%emt 0:00:22]} Rc2 {[%emt 0:00:04]} 42. g5 {[%emt 0:00:02]} Bf7 {[%emt 0:00:01]} 43. e5 {[%emt 0:00:12]} b2 44. g6 Bxg6 45. e6 Rxd2+ {[%emt 0:00:07]} 46. Rxd2 {[%emt 0:00:03]} b1=Q {[%emt 0:00:01]} 47. Re2 {[%emt 0:00:05]} Ke7 {[%emt 0:00:07]} 48. Nd5+ {[%emt 0:00:01]} Kd6 {[%emt 0:00:01]} 49. Nf4 {[%emt 0:00:04]} Be8 {[%emt 0:00:01]} 50. Rd2+ {[%emt 0:00:01]} Ke7 {[%emt 0:00:02]} 51. Re2 {[%emt 0:00:02]} Qf5 {[%emt 0:00:01]} 52. Kg3 {[%emt 0:00:02]} Bb5 {[%emt 0:00:05]} 53. Re5 {[%emt 0:00:02]} Qb1 {[%emt 0:00:03]} 54. Rg5 {[%emt 0:00:02]} Qg1+ {[%emt 0:00:02]} 55. Kh4 {[%emt 0:00:01]} Qf2+ {[%emt 0:00:02]} 56. Kg4 {[%emt 0:00:01]} Be2+ {[%emt 0:00:01]} 57. Kf5 {[%emt 0:00:01]} Qc5+ {[%emt 0:00:03]} 58. Kg6 {[%emt 0:00:01]} Qc2+ {[%emt 0:00:01]} 59. Kg7 {[%emt 0:00:02]} Bc4 {[%emt 0:00:01]} 60. Re5 {[%emt 0:00:04]} Qc3 {[%emt 0:00:02]} 61. Ng6+ {[%emt 0:00:01]} Kd6 {[%emt 0:00:01]} 62. e7 {[%emt 0:00:00]} Bb5 {[%emt 0:00:01]} 63. Kf8 {[%emt 0:00:03]} Qf3+ {[%emt 0:00:01]} 64. Kg7 {[%emt 0:00:02]} Be8 {[%emt 0:00:01]} 65. Rg5 {[%emt 0:00:08]} Qf7+ {[%emt 0:00:03]} 66. Kh6 {[%emt 0:00:01]} Qf6 {[%emt 0:00:01]} 67. Rg4 {[%emt 0:00:01]} Qa1 {[%emt 0:00:08]} 68. Rg3 {[%emt 0:00:01]} Ke6 {[%emt 0:00:05]} 69. Re3+ {[%emt 0:00:01]} Kf5 {[%emt 0:00:02]} 70. Rf3+ {[%emt 0:00:02]} Ke6 {[%emt 0:00:01]} 71. Re3+ {[%emt 0:00:00]} Kd6 {[%emt 0:00:02]} 72. Rd3+ {[%emt 0:00:01]} Kc7 {[%emt 0:00:02]} 73. Rg3 {[%emt 0:00:02]} Qf6 {[%emt 0:00:02]} 74. Kh7 {[%emt 0:00:02]} Kb6 {[%emt 0:00:03]} 75. Kh6 {[%emt 0:00:07]} Ka5 {[%emt 0:00:01]} 76. Rg5+ {[%emt 0:00:01]} Kb4 {[%emt 0:00:02]} 77. Rg4+ {[%emt 0:00:02]} Kc3 {[%emt 0:00:01]} 78. Rg3+ {[%emt 0:00:01]} Kd2 {[%emt 0:00:01]} 79. Rg2+ {[%emt 0:00:01]} Ke1 {[%emt 0:00:01]} 80. Rg1+ {[%emt 0:00:06]} Kf2 {[%emt 0:00:01]} 81. Rg5 {[%emt 0:00:01]} Bxg6 {[%emt 0:00:03]} 82. Rxg6 {[%emt 0:00:04]} Qh4+ {[%emt 0:00:00]} 83. Kg7 {[%emt 0:00:01]} Qxe7+ {[%emt 0:00:01]} 84. Kh6 {[%emt 0:00:01]} Kf3 {[%emt 0:00:01]} 85. Rg5 {[%emt 0:00:03]} Kf4 {[%emt 0:00:01]} 86. Rg1 {[%emt 0:00:03]} Qd6+ {[%emt 0:00:05]} 87. Kh7 {[%emt 0:00:01]} Qc7+ {[%emt 0:00:03]} 88. Rg7 {[%emt 0:00:01]} Qc2+ {[%emt 0:00:01]} 89. Kh6 {[%emt 0:00:02]} Kf5 {[%emt 0:00:01]} 90. Rf7+ {[%emt 0:00:00]} Ke6 {[%emt 0:00:00]} 91. Rf8 {[%emt 0:00:04]} Ke7 {[%emt 0:00:02]} 92. Rg8 {[%emt 0:00:04]} Kf7 {[%emt 0:00:02]} 93. Rg7+ {[%emt 0:00:01]} Kf6 {[%emt 0:00:00]} 94. Rg5 {[%emt 0:00:02]} Qd2 {[%emt 0:00:02]} 0-1

[Event "IMSA Blitz Men 2019"]
[Site "Hengshui"]
[Date "2019.05.18"]
[Round "8.2"]
[White "Fedoseev, Vladimir"]
[Black "Mamedov, Rauf"]
[Result "0-1"]
[ECO "B35"]
[WhiteElo "2683"]
[BlackElo "2650"]
[Annotator "RC"]
[PlyCount "62"]
[EventDate "2019.05.17"]
[EventType "blitz"]
[EventCountry "CHN"]
[SourceTitle "playchess.com"]
[Source "ChessBase"]
[SourceQuality "1"]
[TimeControl "180+2"]

1. e4 {[%emt 0:00:00]} c5 {[%emt 0:00:00]} 2. Nf3 {[%emt 0:00:00]} Nc6 {[%emt 0:00:02]} 3. d4 {[%emt 0:00:01]} cxd4 {[%emt 0:00:01]} 4. Nxd4 {[%emt 0:00:00]} g6 {[%emt 0:00:01]} 5. Nc3 {[%emt 0:00:02]} Bg7 {[%emt 0:00:01]} 6. Be3 {[%emt 0:00:01]} Nf6 {[%emt 0:00:00]} 7. Bc4 {[%emt 0:00:01]} O-O {[%emt 0:00:02]} 8. Bb3 {[%emt 0:00:01]} d6 {[%emt 0:00:01]} 9. f3 {[%emt 0:00:03]} Bd7 {[%emt 0:00:00]} 10. Qd2 {[%emt 0:00:01]} Nxd4 {[%emt 0:00:01]} 11. Bxd4 {[%emt 0:00:03]} b5 {[%emt 0:00:01]} 12. h4 {[%emt 0:00:29]} a5 {[%emt 0:00:01]} 13. a4 {[%emt 0:00:17]} bxa4 {[%emt 0:00:03]} 14. Bxa4 {[%emt 0:00:16]} h5 {[%emt 0:00:07]} 15. Bb3 {[%emt 0:00:09]} Bc6 {[%emt 0:00:08]} 16. O-O {[%emt 0:00:12]} Qb8 {[%emt 0:00:04]} 17. Bc4 {[%emt 0:00:20]} a4 {[%emt 0:00:30]} 18. b3 {[%emt 0:00:04]} Rc8 {[%emt 0:00:15]} 19. Rae1 {[%emt 0:00:13]} a3 {[%emt 0:00:39]} 20. f4 {[%emt 0:00:28]} Ng4 {[%emt 0:00:23]} 21. Rd1 {[%emt 0:00:39]} e6 {[%emt 0:00:36]} 22. Bxg7 {[%emt 0:00:13]} Kxg7 {[%emt 0:00:01]} 23. Kh1 {[%emt 0:00:01]} Kg8 {[%emt 0:00:09]} 24. Be2 {[%emt 0:00:05]} Nf6 {[%emt 0:00:12]} 25. f5 {[%emt 0:00:01]} Nxe4 {[%emt 0:00:10]} 26. Nxe4 {[%emt 0:00:04]} Bxe4 {[%emt 0:00:01]} 27. fxe6 {[%emt 0:00:04]} fxe6 {[%emt 0:00:02]} 28. Rf6 {[%emt 0:00:01]} a2 {[%emt 0:00:09]} 29. Bd3 {[%emt 0:00:04]} a1=Q {[%emt 0:00:04]} 30. Rxa1 {[%emt 0:00:00]} Rxa1+ {[%emt 0:00:02]} 31. Kh2 {[%emt 0:00:02]} d5+ {[%emt 0:00:00]} 0-1

[Event "IMSA Blitz Men 2019"]
[Site "Hengshui"]
[Date "2019.05.18"]
[Round "8.2"]
[White "Leko, Peter"]
[Black "Bu, Xiangzhi"]
[Result "0-1"]
[ECO "C42"]
[WhiteElo "2674"]
[BlackElo "2729"]
[Annotator "RC"]
[PlyCount "124"]
[EventDate "2019.05.17"]
[EventType "blitz"]
[EventCountry "CHN"]
[SourceTitle "playchess.com"]
[Source "ChessBase"]
[SourceQuality "1"]
[TimeControl "180+2"]

1. e4 {[%emt 0:00:00]} e5 {[%emt 0:00:00]} 2. Nf3 {[%emt 0:00:00]} Nf6 {[%emt 0:00:00]} 3. Nxe5 {[%emt 0:00:01]} d6 {[%emt 0:00:00]} 4. Nf3 {[%emt 0:00:02]} Nxe4 {[%emt 0:00:01]} 5. Bd3 {[%emt 0:00:01]} Nf6 {[%emt 0:00:01]} 6. O-O Be7 7. Re1 {[%emt 0:00:03]} O-O {[%emt 0:00:02]} 8. Bf1 {[%emt 0:00:01]} d5 {[%emt 0:00:05]} 9. d4 {[%emt 0:00:02]} c5 {[%emt 0:00:01]} 10. dxc5 {[%emt 0:00:19]} Bxc5 {[%emt 0:00:01]} 11. Be3 {[%emt 0:00:12]} Bxe3 {[%emt 0:00:08]} 12. Rxe3 {[%emt 0:00:01]} Nc6 {[%emt 0:00:01]} 13. h3 {[%emt 0:00:16]} d4 {[%emt 0:00:14]} 14. Re2 {[%emt 0:00:27]} Qb6 {[%emt 0:00:07]} 15. c3 {[%emt 0:00:02]} Rd8 {[%emt 0:00:18]} 16. cxd4 Nxd4 17. Nxd4 {[%emt 0:00:06]} Rxd4 {[%emt 0:00:04]} 18. Rd2 {[%emt 0:00:50]} Rxd2 {[%emt 0:00:02]} 19. Qxd2 {[%emt 0:00:01]} Bf5 {[%emt 0:00:35]} 20. Nc3 {[%emt 0:00:03]} Rd8 {[%emt 0:00:01]} 21. Qc1 {[%emt 0:00:04]} h6 {[%emt 0:00:06]} 22. b3 {[%emt 0:00:06]} Qd4 {[%emt 0:01:06]} 23. Qd1 {[%emt 0:00:32]} Ne4 {[%emt 0:00:30]} 24. Qxd4 {[%emt 0:00:05]} Rxd4 {[%emt 0:00:01]} 25. Nxe4 {[%emt 0:00:08]} Bxe4 {[%emt 0:00:01]} 26. Re1 {[%emt 0:00:03]} Bc6 {[%emt 0:00:06]} 27. a3 {[%emt 0:00:18]} Kf8 {[%emt 0:00:04]} 28. f3 {[%emt 0:00:02]} Rd2 {[%emt 0:00:01]} 29. Re3 {[%emt 0:00:02]} a5 {[%emt 0:00:03]} 30. a4 {[%emt 0:00:07]} Bd5 {[%emt 0:00:06]} 31. Rc3 {[%emt 0:00:02]} Ke7 {[%emt 0:00:03]} 32. Bc4 {[%emt 0:00:01]} Bc6 {[%emt 0:00:04]} 33. h4 {[%emt 0:00:02]} g5 {[%emt 0:00:08]} 34. hxg5 {[%emt 0:00:01]} hxg5 {[%emt 0:00:00]} 35. Kh2 {[%emt 0:00:01]} f5 {[%emt 0:00:04]} 36. Kg3 {[%emt 0:00:02]} Kf6 {[%emt 0:00:01]} 37. Kh2 {[%emt 0:00:03]} g4 {[%emt 0:00:01]} 38. Kg3 {[%emt 0:00:02]} Kg5 {[%emt 0:00:01]} 39. f4+ {[%emt 0:00:05]} Kf6 {[%emt 0:00:00]} 40. Bf1 {[%emt 0:00:01]} Rb2 {[%emt 0:00:04]} 41. Kh2 {[%emt 0:00:04]} Ke6 {[%emt 0:00:04]} 42. Re3+ {[%emt 0:00:02]} Kd6 {[%emt 0:00:01]} 43. Re5 {[%emt 0:00:03]} b6 {[%emt 0:00:05]} 44. Rxf5 {[%emt 0:00:01]} Rxb3 45. Rf6+ Kc5 46. Rg6 {[%emt 0:00:04]} Bxa4 {[%emt 0:00:03]} 47. Rg5+ {[%emt 0:00:01]} Kd4 {[%emt 0:00:01]} 48. Rxg4 {[%emt 0:00:01]} Bd7 {[%emt 0:00:01]} 49. Rg7 {[%emt 0:00:01]} Bc6 {[%emt 0:00:03]} 50. g4 {[%emt 0:00:02]} Rf3 {[%emt 0:00:01]} 51. Kg1 {[%emt 0:00:05]} Rxf4 {[%emt 0:00:01]} 52. g5 {[%emt 0:00:02]} a4 {[%emt 0:00:01]} 53. g6 {[%emt 0:00:02]} Kc5 {[%emt 0:00:07]} 54. Rg8 {[%emt 0:00:02]} Bd5 {[%emt 0:00:03]} 55. Rc8+ {[%emt 0:00:01]} Kb4 {[%emt 0:00:01]} 56. Rd8 {[%emt 0:00:02]} Bb3 {[%emt 0:00:01]} 57. Rd6 {[%emt 0:00:02]} Kc5 {[%emt 0:00:02]} 58. Rd8 {[%emt 0:00:04]} Rg4+ {[%emt 0:00:00]} 59. Kf2 {[%emt 0:00:01]} Rxg6 {[%emt 0:00:01]} 60. Ke3 {[%emt 0:00:00]} Kb4 {[%emt 0:00:02]} 61. Rb8 {[%emt 0:00:01]} a3 {[%emt 0:00:01]} 62. Ra8 {[%emt 0:00:01]} a2 {[%emt 0:00:00]} 0-1

[Event "IMSA Blitz Men 2019"]
[Site "Hengshui"]
[Date "2019.05.18"]
[Round "9.1"]
[White "Yu, Yangyi"]
[Black "Mamedov, Rauf"]
[Result "1-0"]
[ECO "D30"]
[WhiteElo "2739"]
[BlackElo "2650"]
[Annotator "ChessBase"]
[PlyCount "193"]
[EventDate "2019.05.17"]
[EventType "blitz"]
[EventCountry "CHN"]
[SourceTitle "playchess.com"]
[Source "ChessBase"]
[SourceQuality "1"]
[TimeControl "180+2"]

1. d4 {[%emt 0:00:00]} d5 {[%emt 0:00:00]} 2. c4 {[%emt 0:00:00]} e6 {[%emt 0:00:00]} 3. Nf3 {[%emt 0:00:05]} c5 {[%emt 0:00:00]} 4. e3 {[%emt 0:00:09]} Nc6 {[%emt 0:00:03]} 5. Nc3 {[%emt 0:00:01]} Nf6 {[%emt 0:00:04]} 6. a3 {[%emt 0:00:01]} a6 {[%emt 0:00:01]} 7. dxc5 {[%emt 0:00:07]} Bxc5 {[%emt 0:00:01]} 8. b4 {[%emt 0:00:00]} Ba7 9. Bb2 O-O {[%emt 0:00:06]} 10. Be2 {[%emt 0:00:02]} dxc4 {[%emt 0:00:14]} 11. Bxc4 {[%emt 0:00:01]} b5 {[%emt 0:00:01]} 12. Be2 {[%emt 0:00:09]} Bb7 {[%emt 0:00:02]} 13. O-O {[%emt 0:00:14]} Qe7 {[%emt 0:00:01]} 14. Rc1 {[%emt 0:00:03]} Rfd8 {[%emt 0:00:05]} 15. Qc2 Rac8 16. Qb1 {[%emt 0:00:02]} Bb8 {[%emt 0:00:02]} 17. Rfd1 {[%emt 0:00:04]} Ne5 {[%emt 0:00:09]} 18. Nxe5 {[%emt 0:00:09]} Bxe5 {[%emt 0:00:01]} 19. Rxd8+ {[%emt 0:00:04]} Rxd8 {[%emt 0:00:28]} 20. h3 {[%emt 0:00:08]} Bb8 {[%emt 0:00:24]} 21. Rd1 {[%emt 0:00:22]} Rc8 {[%emt 0:00:03]} 22. Qd3 {[%emt 0:00:43]} Qc7 {[%emt 0:00:13]} 23. f4 {[%emt 0:00:01]} h6 {[%emt 0:00:06]} 24. Rd2 {[%emt 0:00:06]} Ba7 {[%emt 0:00:06]} 25. Kh1 {[%emt 0:00:17]} Qb6 {[%emt 0:00:05]} 26. Qd4 {[%emt 0:00:13]} Qxd4 {[%emt 0:00:07]} 27. exd4 Bb8 28. Rd1 {[%emt 0:00:27]} Bxf4 {[%emt 0:00:03]} 29. Kg1 {[%emt 0:00:00]} Nd5 {[%emt 0:00:41]} 30. Nxd5 {[%emt 0:00:07]} Bxd5 {[%emt 0:00:01]} 31. Bd3 {[%emt 0:00:01]} f5 {[%emt 0:00:06]} 32. Kf2 {[%emt 0:00:05]} Kf7 {[%emt 0:00:00]} 33. g3 {[%emt 0:00:01]} Bg5 {[%emt 0:00:01]} 34. h4 {[%emt 0:00:02]} Bf6 {[%emt 0:00:01]} 35. h5 {[%emt 0:00:02]} Ke7 {[%emt 0:00:05]} 36. Ra1 {[%emt 0:00:02]} Bc4 {[%emt 0:00:04]} 37. Ke2 {[%emt 0:00:04]} Bb3 {[%emt 0:00:13]} 38. Rg1 {[%emt 0:00:06]} Bd5 {[%emt 0:00:19]} 39. Ra1 {[%emt 0:00:02]} Bb3 {[%emt 0:00:05]} 40. Rg1 {[%emt 0:00:01]} Bc2 {[%emt 0:00:05]} 41. Ra1 {[%emt 0:00:05]} Bxd3+ {[%emt 0:00:05]} 42. Kxd3 {[%emt 0:00:01]} Rd8 {[%emt 0:00:01]} 43. Ke3 {[%emt 0:00:03]} Bg5+ {[%emt 0:00:02]} 44. Kf3 {[%emt 0:00:03]} Rc8 {[%emt 0:00:00]} 45. d5 {[%emt 0:00:03]} Bf6 {[%emt 0:00:06]} 46. Bxf6+ {[%emt 0:00:02]} Kxf6 {[%emt 0:00:01]} 47. dxe6 {[%emt 0:00:02]} Rc3+ {[%emt 0:00:00]} 48. Kf4 {[%emt 0:00:05]} Rc4+ {[%emt 0:00:04]} 49. Kf3 {[%emt 0:00:00]} Kxe6 {[%emt 0:00:02]} 50. Rd1 {[%emt 0:00:09]} Rc3+ {[%emt 0:00:07]} 51. Kf4 {[%emt 0:00:00]} Rxa3 {[%emt 0:00:01]} 52. Re1+ {[%emt 0:00:04]} Kf6 {[%emt 0:00:00]} 53. Rc1 {[%emt 0:00:03]} Ra4 {[%emt 0:00:05]} 54. Rc6+ {[%emt 0:00:01]} Kf7 {[%emt 0:00:01]} 55. Kxf5 {[%emt 0:00:02]} Rxb4 56. Rxa6 Rb3 {[%emt 0:00:04]} 57. Ra7+ {[%emt 0:00:04]} Kg8 {[%emt 0:00:00]} 58. Ra8+ {[%emt 0:00:04]} Kh7 {[%emt 0:00:01]} 59. g4 {[%emt 0:00:01]} Rb1 {[%emt 0:00:02]} 60. Rb8 {[%emt 0:00:02]} b4 {[%emt 0:00:03]} 61. Kf4 {[%emt 0:00:01]} b3 {[%emt 0:00:01]} 62. Kf3 {[%emt 0:00:02]} g5 {[%emt 0:00:01]} 63. Rb7+ {[%emt 0:00:03]} Kg8 {[%emt 0:00:01]} 64. Kf2 {[%emt 0:00:01]} Kf8 {[%emt 0:00:01]} 65. Kg2 {[%emt 0:00:03]} Ke8 {[%emt 0:00:01]} 66. Kf2 {[%emt 0:00:01]} Kd8 {[%emt 0:00:00]} 67. Kg2 {[%emt 0:00:01]} Kc8 {[%emt 0:00:01]} 68. Rb4 {[%emt 0:00:01]} Kc7 {[%emt 0:00:00]} 69. Rb5 {[%emt 0:00:02]} Kc6 {[%emt 0:00:01]} 70. Rb8 {[%emt 0:00:01]} Kc5 {[%emt 0:00:01]} 71. Rb7 {[%emt 0:00:04]} Kc4 72. Rc7+ {[%emt 0:00:05]} Kd3 {[%emt 0:00:02]} 73. Rb7 {[%emt 0:00:02]} Kc2 {[%emt 0:00:01]} 74. Rc7+ {[%emt 0:00:01]} Kb2 {[%emt 0:00:02]} 75. Rc6 {[%emt 0:00:01]} Rd1 {[%emt 0:00:10]} 76. Rxh6 {[%emt 0:00:01]} Kc3 {[%emt 0:00:03]} 77. Rc6+ {[%emt 0:00:01]} Kb4 {[%emt 0:00:00]} 78. Rb6+ {[%emt 0:00:02]} Kc4 {[%emt 0:00:01]} 79. h6 {[%emt 0:00:04]} Rd7 {[%emt 0:00:04]} 80. Kf3 {[%emt 0:00:01]} Kc3 {[%emt 0:00:01]} 81. Rc6+ {[%emt 0:00:04]} Kd2 {[%emt 0:00:01]} 82. Rb6 {[%emt 0:00:01]} Kc2 {[%emt 0:00:01]} 83. Rc6+ {[%emt 0:00:01]} Kb1 {[%emt 0:00:00]} 84. Ke4 {[%emt 0:00:03]} b2 {[%emt 0:00:01]} 85. Kf5 {[%emt 0:00:03]} Rb7 {[%emt 0:00:00]} 86. Kxg5 {[%emt 0:00:02]} Ka1 {[%emt 0:00:01]} 87. Ra6+ {[%emt 0:00:01]} Kb1 {[%emt 0:00:01]} 88. Rc6 {[%emt 0:00:03]} Ka1 {[%emt 0:00:02]} 89. Ra6+ {[%emt 0:00:00]} Kb1 {[%emt 0:00:01]} 90. Rf6 {[%emt 0:00:03]} Ka2 {[%emt 0:00:12]} 91. Rf1 {[%emt 0:00:04]} Rc7 {[%emt 0:00:02]} 92. Kh5 {[%emt 0:00:02]} Ka3 {[%emt 0:00:03]} 93. Rb1 {[%emt 0:00:01]} Rc2 {[%emt 0:00:04]} 94. g5 {[%emt 0:00:01]} Rh2+ {[%emt 0:00:01]} 95. Kg6 {[%emt 0:00:01]} Ka2 {[%emt 0:00:02]} 96. Rxb2+ {[%emt 0:00:00]} Kxb2 {[%emt 0:00:01]} 97. Kh7 1-0